fUSD/lending_fUSD_20241220
["ID","MTS","AMOUNT","RATE_DAILY","PERIOD"]
[346095154,1734705041143,-153.0,0.00015355,2]
[346095155,1734705041156,-153.0,0.00015355,2]
[346095156,1734705041165,-153.0,0.00015355,2]
[346095157,1734705041175,-153.0,0.00015355,2]
[346095158,1734705041185,-153.0,0.00015355,2]
[346095159,1734705041195,-153.0,0.00015355,2]
[346095160,1734705041205,-153.0,0.00015355,2]
[346095161,1734705041214,-153.0,0.00015355,2]
[346095162,1734705041223,-153.0,0.00015355,2]
[346095163,1734705041233,-153.0,0.00015355,2]
[346095164,1734705041242,-153.0,0.00015355,2]
[346095165,1734705041252,-153.0,0.00015355,2]
[346095166,1734705041261,-153.0,0.00015355,2]
[346095167,1734705041273,-153.0,0.00015355,2]
[346095168,1734705041284,-153.0,0.00015355,2]
[346095169,1734705041294,-153.0,0.00015355,2]
[346095170,1734705041304,-153.0,0.00015355,2]
[346095171,1734705041314,-153.0,0.00015355,2]
[346095172,1734705041323,-153.0,0.00015355,2]
[346095173,1734705041333,-153.0,0.00015355,2]
[346095174,1734705041342,-153.0,0.00015355,2]
[346095175,1734705041352,-153.0,0.00015355,2]
[346095176,1734705041362,-153.0,0.00015355,2]
[346095177,1734705041371,-153.0,0.00015355,2]
[346095178,1734705041380,-153.0,0.00015355,2]
[346095179,1734705041390,-153.0,0.00015355,2]
[346095180,1734705041399,-153.0,0.00015355,2]
[346095181,1734705041415,-153.0,0.00015355,2]
[346095182,1734705041424,-153.0,0.00015355,2]
[346095183,1734705041433,-153.0,0.00015355,2]
[346095184,1734705041442,-153.0,0.00015355,2]
[346095185,1734705041452,-153.0,0.00015355,2]
[346095186,1734705041462,-153.0,0.00015355,2]
[346095187,1734705041471,-153.0,0.00015355,2]
[346095188,1734705041480,-153.0,0.00015355,2]
[346095189,1734705041490,-154.132469,0.0001537,2]
[346095190,1734705041499,-151.0,0.0001537,2]
[346095191,1734705041508,-151.0,0.0001537,2]
[346095192,1734705041518,-151.0,0.0001537,2]
[346095193,1734705041528,-151.0,0.0001537,2]
[346095194,1734705041538,-193.703864,0.0001537,2]
[346095195,1734705041547,-151.0,0.0001537,2]
[346095196,1734705041556,-151.0,0.0001537,2]
[346095197,1734705041565,-151.0,0.0001537,2]
[346095198,1734705041574,-290.867374,0.0001537,2]
[346095199,1734705041583,-151.0,0.0001537,2]
[346095200,1734705041592,-151.0,0.0001537,2]
[346095201,1734705041602,-151.0,0.0001537,2]
[346095202,1734705041612,-151.0,0.0001537,2]
[346095203,1734705041621,-151.0,0.0001537,2]
[346095204,1734705041630,-368.470024,0.0001537,2]
[346095205,1734705041640,-368.470024,0.0001537,2]
[346095206,1734705041649,-151.0,0.0001537,2]
[346095207,1734705041663,-477.436676,0.0001537,2]
[346095208,1734705041672,-477.436676,0.0001537,2]
[346095209,1734705041681,-157.400464,0.0001537,2]
[346095210,1734705041690,-573.298386,0.0001537,2]
[346095211,1734705041700,-573.298386,0.0001537,2]
[346095212,1734705041709,-151.0,0.0001537,2]
[346095213,1734705041718,-151.0,0.0001537,2]
[346095214,1734705041728,-151.0,0.0001537,2]
[346095215,1734705041737,-151.0,0.0001537,2]
[346095216,1734705041746,-232.637467,0.0001537,2]
[346095217,1734705041756,-151.0,0.0001537,2]
[346095218,1734705041765,-151.0,0.0001537,2]
[346095219,1734705041775,-6216.88748,0.0001537,2]
[346095220,1734705041785,-6216.88748,0.0001537,2]
[346095221,1734705041794,-484.07134625,0.000154,2]
[346095222,1734705041803,-151.03,0.00015452,2]
[346095223,1734705041812,-435.85,0.00015452,2]
[346095224,1734705041821,-151.72,0.00015452,2]
[346095225,1734705041831,-266.0,0.00015479,2]
[346095226,1734705041840,-151.0,0.00015658,2]
[346095227,1734705041850,-151.0,0.00015658,2]
[346095228,1734705041859,-151.0,0.00015658,2]
[346095229,1734705041868,-151.0,0.00015658,2]
[346095230,1734705041878,-151.0,0.00015658,2]
[346095231,1734705041887,-151.0,0.00015658,2]
[346095232,1734705041896,-226.46106235,0.00015699,2]
[346095233,1734705041911,-151.0,0.000157,2]
[346095234,1734705041921,-277.144935,0.000157,2]
[346095235,1734705041930,-277.144935,0.000157,2]
[346095236,1734705041940,-159.064382,0.000157,2]
[346095237,1734705041949,-195.82868,0.000157,2]
[346095238,1734705041958,-57062.58357156,0.000157,2]
[346095239,1734705041968,-2740.22,0.00015753,2]
[346095240,1734705041979,-2000.0,0.0001582,2]
[346095241,1734705041989,-163.85,0.00015879,2]
[346095242,1734705041998,-3000.0,0.0001589,2]
[346095243,1734705042008,-6952.37577805,0.00016,2]
[346095244,1734705042017,-200.0,0.0001634,2]
[346095245,1734705042026,-1071.14,0.00016384,2]
[346095246,1734705042035,-300.0,0.00016438,2]
[346095247,1734705042045,-2740.22,0.00016438,2]
[346095248,1734705042055,-150.0,0.00016438,2]
[346095249,1734705042064,-1139.2,0.00016442,2]
[346095250,1734705042073,-1000.0,0.00016529,2]
[346095251,1734705042082,-308.69290276,0.00016556,2]
[346095252,1734705042091,-300.0,0.00016556,2]
[346095253,1734705042101,-1909.652,0.00016557,2]
[346095254,1734705042110,-3769.0,0.00016557,2]
[346095255,1734705042119,-818.0,0.00016557,2]
[346095256,1734705042128,-1255.0,0.00016557,2]
[346095257,1734705042138,-926.0,0.00016557,2]
[346095258,1734705042149,-536.491,0.00016557,2]
[346095259,1734705042163,-3680.0,0.00016557,2]
[346095260,1734705042173,-1100.0,0.00016557,2]
[346095261,1734705042182,-3885.0,0.00016557,2]
[346095262,1734705042191,-150.664,0.00016557,2]
[346095263,1734705042200,-1294.008,0.00016557,2]
[346095264,1734705042210,-719.0,0.00016557,2]
[346095265,1734705042219,-2010.0,0.00016557,2]
[346095266,1734705042229,-13750.0,0.00016557,2]
[346095267,1734705042238,-576.0,0.00016622,2]
[346095268,1734705042247,-163.85,0.00016635,2]
[346095269,1734705042257,-186.64,0.00016712,2]
[346095270,1734705042267,-300.03,0.00016781,7]
[346095271,1734705042277,-218.96,0.00016813,2]
[346095272,1734705042287,-553.98,0.00016813,2]
[346095273,1734705042298,-300.0,0.00016864,2]
[346095274,1734705042307,-300.0,0.00016864,2]
[346095275,1734705042318,-151.0,0.00016865,2]
[346095276,1734705042327,-151.0,0.00016865,2]
[346095277,1734705042337,-151.0,0.00016865,2]
[346095278,1734705042346,-166.979139,0.00016865,2]
[346095279,1734705042355,-151.0,0.00016865,2]
[346095280,1734705042365,-166.979139,0.00016865,2]
[346095281,1734705042374,-290.955859,0.00016865,2]
[346095282,1734705042383,-290.955859,0.00016865,2]
[346095283,1734705042392,-189.926368,0.00016865,2]
[346095284,1734705042401,-463.283799,0.00016865,2]
[346095285,1734705042410,-189.926368,0.00016865,2]
[346095286,1734705042420,-463.283799,0.00016865,2]
[346095287,1734705042429,-151.0,0.00016865,2]
[346095288,1734705042438,-358.13378,0.00016865,2]
[346095289,1734705042447,-358.13378,0.00016865,2]
[346095290,1734705042456,-174.413806,0.00016865,2]
[346095291,1734705042465,-174.413806,0.00016865,2]
[346095292,1734705042474,-1677.99633,0.00016865,2]
[346095293,1734705042484,-1677.99633,0.00016865,2]
[346095294,1734705042493,-30000.0,0.00016865,2]
[346095295,1734705042502,-410.76,0.00016895,2]
[346095296,1734705042513,-1958.81,0.00016895,2]
[346095297,1734705042523,-30110.08547566,0.00017,5]
[346095298,1734705042533,-550.0,0.00017,2]
[346095299,1734705042543,-786.09,0.00017056,2]
[346095300,1734705042552,-663.33,0.00017056,2]
[346095301,1734705042561,-258.11696341,0.00017123,2]
[346095302,1734705042570,-2500.0,0.00017356,2]
[346095303,1734705042579,-163.85,0.00017391,2]
[346095304,1734705042588,-212.449,0.00017448,2]
[346095305,1734705042597,-250.759934,0.00017734,2]
[346095306,1734705042606,-368.470024,0.00017734,2]
[346095307,1734705042616,-368.470024,0.00017734,2]
[346095308,1734705042625,-151.0,0.00017734,2]
[346095309,1734705042634,-150.72,0.00017734,2]
[346095310,1734705042643,-445.23,0.00017734,2]
[346095311,1734705042653,-150.0,0.00017734,2]
[346095312,1734705042662,-365.0,0.00017734,2]
[346095313,1734705042672,-436.13,0.00017734,2]
[346095314,1734705042681,-365.0,0.00017734,2]
[346095315,1734705042690,-150.0,0.00017734,2]
[346095316,1734705042699,-150.0,0.00017734,2]
[346095317,1734705042708,-150.0,0.00017734,2]
[346095318,1734705042717,-436.13,0.00017734,2]
[346095319,1734705042726,-150.0,0.00017734,2]
[346095320,1734705042736,-150.0,0.00017734,2]
[346095321,1734705042746,-150.0,0.00017734,2]
[346095322,1734705042755,-436.13,0.00017734,2]
[346095323,1734705042765,-150.0,0.00017734,2]
[346095324,1734705042774,-436.13,0.00017734,2]
[346095325,1734705042783,-727.6,0.00017734,2]
[346095326,1734705042792,-150.0,0.00017734,2]
[346095327,1734705042802,-365.0,0.00017734,2]
[346095328,1734705042811,-150.0,0.00017734,2]
[346095329,1734705042820,-300.0,0.00017734,2]
[346095330,1734705042829,-853.64,0.00017734,2]
[346095331,1734705042969,-365.0,0.00017734,2]
[346095332,1734705042979,-300.0,0.00017734,2]
[346095333,1734705042989,-365.0,0.00017734,2]
[346095334,1734705042999,-365.0,0.00017734,2]
[346095335,1734705043009,-346.04,0.00017734,2]
[346095336,1734705043018,-363.32062561,0.00017749,2]
[346095337,1734705043027,-151.0,0.000178,2]
[346095338,1734705043037,-151.0,0.000178,2]
[346095339,1734705043046,-151.874192,0.000178,2]
[346095340,1734705043056,-226.46106235,0.00017827,2]
[346095341,1734705043065,-368.470024,0.00017828,2]
[346095342,1734705043075,-368.470024,0.00017828,2]
[346095343,1734705043084,-151.0,0.00017828,2]
[346095344,1734705043094,-477.436676,0.00017828,2]
[346095345,1734705043104,-477.436676,0.00017828,2]
[346095346,1734705043114,-573.298386,0.00017828,2]
[346095349,1734705043123,-573.298386,0.00017828,2]
[346095351,1734705043133,-151.0,0.00017828,2]
[346095353,1734705043142,-151.0,0.00017828,2]
[346095354,1734705043151,-151.0,0.00017828,2]
[346095355,1734705043176,-151.0,0.00017828,2]
[346095356,1734705043185,-151.0,0.00017828,2]
[346095357,1734705043194,-151.0,0.00017828,2]
[346095358,1734705043203,-166.979139,0.00017828,2]
[346095359,1734705043212,-151.0,0.00017828,2]
[346095360,1734705043221,-151.0,0.00017828,2]
[346095361,1734705043231,-166.979139,0.00017828,2]
[346095362,1734705043240,-290.955859,0.00017828,2]
[346095363,1734705043250,-151.0,0.00017828,2]
[346095364,1734705043260,-290.955859,0.00017828,2]
[346095366,1734705043269,-189.926368,0.00017828,2]
[346095368,1734705043278,-463.283799,0.00017828,2]
[346095371,1734705043289,-189.926368,0.00017828,2]
[346095372,1734705043299,-463.283799,0.00017828,2]
[346095374,1734705043309,-151.0,0.00017828,2]
[346095375,1734705043318,-358.13378,0.00017828,2]
[346095376,1734705043327,-358.13378,0.00017828,2]
[346095377,1734705043336,-174.413806,0.00017828,2]
[346095378,1734705043346,-174.413806,0.00017828,2]
[346095379,1734705043355,-6216.88748,0.00017828,2]
[346095380,1734705043365,-6216.88748,0.00017828,2]
[346095381,1734705043374,-151.0,0.00017828,2]
[346095382,1734705043383,-151.0,0.00017828,2]
[346095383,1734705043393,-151.0,0.00017828,2]
[346095384,1734705043402,-151.0,0.00017828,2]
[346095385,1734705043411,-1677.99633,0.00017828,2]
[346095389,1734705043420,-1677.99633,0.00017828,2]
[346095392,1734705043429,-175.978408,0.00017828,2]
[346095396,1734705043439,-175.978408,0.00017828,2]
[346095399,1734705043449,-151.0,0.00017828,2]
[346095403,1734705043458,-410.028164,0.00017828,2]
[346095407,1734705043467,-828024.5890241,0.00017829,2]
[346095410,1734705043477,-500.0,0.00017873,2]
[346095412,1734705043486,-159.68448847,0.00017873,2]
[346095414,1734705043495,-2200.0,0.00017876,2]
[346095417,1734705043506,-900.0,0.00017876,2]
[346095420,1734705043515,-287.332186,0.000179,2]
[346095423,1734705043524,-277.144935,0.000179,2]
[346095425,1734705043533,-277.144935,0.000179,2]
[346095428,1734705043543,-153.372838,0.000179,2]
[346095431,1734705043552,-500.0,0.000179,2]
[346095434,1734705043561,-150.0,0.000179,2]
[346095437,1734705043571,-1029.0,0.000179,2]
[346095439,1734705043580,-524.0,0.000179,2]
[346095441,1734705043590,-150.0,0.000179,2]
[346095443,1734705043600,-180.4,0.000179,2]
[346095445,1734705043609,-180.4,0.000179,2]
[346095447,1734705043618,-180.4,0.000179,2]
[346095449,1734705043628,-180.4,0.000179,2]
[346095451,1734705043637,-180.4,0.000179,2]
[346095453,1734705043646,-180.4,0.000179,2]
[346095455,1734705043656,-180.4,0.000179,2]
[346095457,1734705043666,-180.4,0.000179,2]
[346095459,1734705043675,-180.4,0.000179,2]
[346095460,1734705043685,-180.4,0.000179,2]
[346095461,1734705043694,-180.4,0.000179,2]
[346095462,1734705043704,-180.4,0.000179,2]
[346095463,1734705043713,-180.4,0.000179,2]
[346095464,1734705043722,-180.4,0.000179,2]
[346095465,1734705043732,-180.4,0.000179,2]
[346095466,1734705043741,-180.4,0.000179,2]
[346095467,1734705043750,-180.4,0.000179,2]
[346095468,1734705043759,-180.4,0.000179,2]
[346095469,1734705043769,-180.4,0.000179,2]
[346095470,1734705043778,-180.4,0.000179,2]
[346095471,1734705043787,-180.4,0.000179,2]
[346095472,1734705043797,-180.4,0.000179,2]
[346095473,1734705043807,-180.4,0.000179,2]
[346095474,1734705043817,-180.4,0.000179,2]
[346095475,1734705043827,-180.4,0.000179,2]
[346095476,1734705043837,-180.4,0.000179,2]
[346095477,1734705043846,-180.4,0.000179,2]
[346095478,1734705043856,-180.4,0.000179,2]
[346095479,1734705043865,-180.4,0.000179,2]
[346095480,1734705043875,-180.4,0.000179,2]
[346095481,1734705043885,-180.4,0.000179,2]
[346095482,1734705043894,-180.4,0.000179,2]
[346095483,1734705043904,-180.4,0.000179,2]
[346095485,1734705043913,-180.4,0.000179,2]
[346095487,1734705043922,-180.4,0.000179,2]
[346095489,1734705043932,-180.4,0.000179,2]
[346095491,1734705043942,-180.4,0.000179,2]
[346095493,1734705043951,-180.4,0.000179,2]
[346095494,1734705043961,-180.4,0.000179,2]
[346095495,1734705043970,-180.4,0.000179,2]
[346095496,1734705043980,-180.4,0.000179,2]
[346095497,1734705043990,-180.4,0.000179,2]
[346095498,1734705043999,-180.4,0.000179,2]
[346095499,1734705044009,-180.4,0.000179,2]
[346095500,1734705044018,-180.4,0.000179,2]
[346095501,1734705044027,-180.4,0.000179,2]
[346095502,1734705044037,-180.4,0.000179,2]
[346095503,1734705044047,-180.4,0.000179,2]
[346095504,1734705044056,-180.4,0.000179,2]
[346095505,1734705044065,-180.4,0.000179,2]
[346095506,1734705044075,-180.4,0.000179,2]
[346095507,1734705044084,-180.4,0.000179,2]
[346095508,1734705044094,-180.4,0.000179,2]
[346095509,1734705044103,-180.4,0.000179,2]
[346095510,1734705044113,-1139.2,0.00017937,2]
[346095511,1734705044122,-151.0,0.00018,2]
[346095512,1734705044132,-151.0,0.00018,2]
[346095513,1734705044141,-151.0,0.00018,2]
[346095514,1734705044150,-2774.43996587,0.00018,2]
[346095515,1734705044170,-1132.31272876,0.00018,2]
[346095516,1734705044179,-5618.50434271,0.00018,2]
[346095517,1734705044189,-1030.65284604,0.00018,2]
[346095518,1734705044199,-198.01,0.00018016,2]
[346095519,1734705044209,-1000.0,0.00018032,2]
[346095520,1734705044219,-199.762,0.00018059,2]
[346095521,1734705044229,-151.0,0.000181,2]
[346095522,1734705044238,-151.0,0.000181,2]
[346095523,1734705044248,-1693.75022843,0.000181,2]
[346095524,1734705044258,-576.0,0.00018134,2]
[346095525,1734705044269,-163.85,0.00018147,2]
[346095526,1734705044278,-500.0,0.00018174,2]
[346095527,1734705044288,-1029.0,0.00018174,2]
[346095528,1734705044297,-524.0,0.00018174,2]
[346095529,1734705044306,-150.0,0.00018174,2]
[346095530,1734705044316,-151.0,0.000182,2]
[346095531,1734705044326,-152.379282,0.000182,2]
[346095532,1734705044335,-151.0,0.000182,2]
[346095533,1734705044344,-151.0,0.000182,2]
[346095534,1734705044354,-151.0,0.000182,2]
[346095535,1734705044363,-150.0,0.00018249,2]
[346095536,1734705044373,-150.0,0.00018301,2]
[346095537,1734705044383,-21554.8,0.00018356,2]
[346095538,1734705044392,-157.05627,0.000184,2]
[346095539,1734705044402,-501.2393036,0.00018421,2]
[346095540,1734705044411,-800.87834963,0.00018448,2]
[346095541,1734705044421,-1029.0,0.00018448,2]
[346095542,1734705044431,-524.0,0.00018448,2]
[346095543,1734705044441,-200.69949638,0.00018448,2]
[346095544,1734705044450,-151.0,0.000185,2]
[346095545,1734705044460,-151.0,0.000185,2]
[346095546,1734705044473,-219178.0,0.000185,2]
[346095547,1734705044483,-152.0,0.00018509,3]
[346095548,1734705044493,-150.0,0.00018529,2]
[346095549,1734705044502,-150.0,0.00018532,2]
[346095550,1734705044512,-500.0,0.00018548,2]
[346095551,1734705044521,-301.07,0.00018554,2]
[346095552,1734705044531,-150.0,0.00018554,2]
[346095553,1734705044541,-150.0,0.00018554,2]
[346095554,1734705044550,-150.0,0.00018554,2]
[346095555,1734705044560,-150.0,0.00018554,2]
[346095556,1734705044569,-365.0,0.00018554,2]
[346095557,1734705044579,-150.0,0.00018554,2]
[346095558,1734705044588,-150.0,0.00018554,2]
[346095559,1734705044598,-150.0,0.00018554,2]
[346095560,1734705044607,-150.0,0.00018554,2]
[346095561,1734705044617,-365.0,0.00018554,2]
[346095562,1734705044626,-150.0,0.00018554,2]
[346095563,1734705044635,-150.0,0.00018554,2]
[346095564,1734705044645,-365.0,0.00018554,2]
[346095565,1734705044654,-150.0,0.00018554,2]
[346095566,1734705044663,-716.64,0.00018554,2]
[346095567,1734705044673,-203.15,0.00018554,2]
[346095568,1734705044683,-150.0,0.00018554,2]
[346095569,1734705044692,-150.0,0.00018554,2]
[346095570,1734705044701,-150.78,0.00018594,2]
[346095571,1734705044710,-150.0,0.00018652,2]
[346095572,1734705044720,-1029.0,0.00018722,2]
[346095573,1734705044729,-524.0,0.00018722,2]
[346095574,1734705044741,-150.0,0.000188,2]
[346095575,1734705044750,-500.0,0.000188,2]
[346095576,1734705044759,-5562.0,0.000189,3]
[346095577,1734705044769,-2500.0,0.0001892,2]
[346095578,1734705044779,-2500.0,0.0001892,2]
[346095579,1734705044789,-150.0,0.00018948,2]
[346095580,1734705044798,-500.0,0.00018972,2]
[346095581,1734705044807,-2200.0,0.00018972,2]
[346095582,1734705044817,-900.0,0.00018972,2]
[346095583,1734705044827,-1029.0,0.00018996,2]
[346095584,1734705044836,-524.0,0.00018996,2]
[346095585,1734705044846,-600.0,0.00019,2]
[346095586,1734705044855,-150.0,0.00019039,2]
[346095587,1734705044864,-150.0,0.00019073,2]
[346095588,1734705044873,-150.0,0.00019097,2]
[346095589,1734705044883,-792.71861648,0.00019099,2]
[346095590,1734705044893,-500.0,0.00019113,2]
[346095591,1734705044903,-504.67274357,0.00019113,2]
[346095592,1734705044912,-500.0,0.00019113,2]
[346095593,1734705044922,-500.0,0.00019113,2]
[346095594,1734705044932,-1958.81,0.00019159,2]
[346095595,1734705044941,-150.0,0.00019177,2]
[346095596,1734705044951,-507.26219028,0.00019178,2]
[346095597,1734705044960,-1000.0,0.00019178,2]
[346095598,1734705044970,-1000.0,0.00019178,2]
[346095599,1734705044979,-1000.0,0.00019178,2]
[346095600,1734705044989,-1000.0,0.00019178,2]
[346095601,1734705044998,-1000.0,0.00019178,2]
[346095602,1734705045008,-1000.0,0.00019178,2]
[346095603,1734705045018,-4000.0,0.00019178,2]
[346095604,1734705045028,-1000.0,0.00019178,2]
[346095605,1734705045038,-1000.0,0.00019178,2]
[346095606,1734705045048,-217.57580101,0.0001918,2]
[346095607,1734705045058,-217.57580101,0.0001918,2]
[346095608,1734705045066,-217.57580101,0.0001918,2]
[346095609,1734705045076,-217.57580101,0.0001918,2]
[346095610,1734705045208,-217.57580101,0.0001918,2]
[346095611,1734705045234,-217.57580101,0.0001918,2]
[346095612,1734705045245,-217.57580101,0.0001918,2]
[346095613,1734705045256,-217.57580101,0.0001918,2]
[346095614,1734705045266,-217.57580101,0.0001918,2]
[346095615,1734705045277,-217.57580101,0.0001918,2]
[346095616,1734705045287,-217.57580101,0.0001918,2]
[346095617,1734705045297,-217.57580101,0.0001918,2]
[346095618,1734705045306,-217.57580101,0.0001918,2]
[346095619,1734705045318,-217.57580101,0.0001918,2]
[346095620,1734705045328,-217.57580101,0.0001918,2]
[346095621,1734705045337,-217.57580101,0.0001918,2]
[346095622,1734705045346,-217.57580101,0.0001918,2]
[346095623,1734705045355,-217.57580101,0.0001918,2]
[346095624,1734705045365,-217.57580101,0.0001918,2]
[346095625,1734705045374,-217.57,0.0001918,2]
[346095626,1734705045384,-326.36370151,0.0001918,2]
[346095627,1734705045394,-326.36370151,0.0001918,2]
[346095628,1734705045403,-326.36370151,0.0001918,2]
[346095629,1734705045413,-326.36370151,0.0001918,2]
[346095630,1734705045422,-326.36370151,0.0001918,2]
[346095631,1734705045431,-326.36370151,0.0001918,2]
[346095632,1734705045441,-326.36370151,0.0001918,2]
[346095633,1734705045450,-326.36370151,0.0001918,2]
[346095634,1734705045460,-326.36370151,0.0001918,2]
[346095635,1734705045471,-326.36370151,0.0001918,2]
[346095636,1734705045480,-326.36370151,0.0001918,2]
[346095637,1734705045489,-326.36370151,0.0001918,2]
[346095638,1734705045499,-326.36370151,0.0001918,2]
[346095639,1734705045508,-326.36370151,0.0001918,2]
[346095640,1734705045518,-326.36370151,0.0001918,2]
[346095641,1734705045527,-326.36370151,0.0001918,2]
[346095642,1734705045538,-326.36370151,0.0001918,2]
[346095643,1734705045548,-326.36370151,0.0001918,2]
[346095644,1734705045563,-326.36370151,0.0001918,2]
[346095645,1734705045572,-326.36,0.0001918,2]
[346095646,1734705045582,-150.0,0.00019193,2]
[346095647,1734705045592,-150.0,0.00019251,2]
[346095648,1734705045601,-1029.0,0.0001927,2]
[346095649,1734705045611,-524.0,0.0001927,2]
[346095650,1734705045622,-150.0,0.00019314,2]
[346095651,1734705045632,-500.0,0.00019316,2]
[346095652,1734705045641,-500.0,0.00019316,2]
[346095653,1734705045651,-500.0,0.00019316,2]
[346095654,1734705045660,-500.0,0.00019316,2]
[346095655,1734705045670,-500.0,0.00019316,2]
[346095656,1734705045679,-500.0,0.00019316,2]
[346095657,1734705045688,-45599.2,0.00019316,2]
[346095658,1734705045697,-151.0,0.00019316,2]
[346095659,1734705045706,-151.0,0.00019316,2]
[346095660,1734705045715,-151.0,0.00019316,2]
[346095661,1734705045725,-151.0,0.00019316,2]
[346095662,1734705045734,-175.978408,0.00019316,2]
[346095663,1734705045743,-175.978408,0.00019316,2]
[346095664,1734705045756,-151.0,0.00019316,2]
[346095665,1734705045765,-410.028164,0.00019316,2]
[346095666,1734705045774,-1000.0,0.00019348,2]
[346095667,1734705045784,-436.13,0.00019385,2]
[346095668,1734705045793,-436.13,0.00019385,2]
[346095669,1734705045802,-443.8,0.00019385,2]
[346095670,1734705045812,-436.13,0.00019385,2]
[346095671,1734705045821,-5562.0,0.000194,5]
[346095672,1734705045830,-150.0,0.00019425,2]
[346095673,1734705045839,-150.0,0.0001943,2]
[346095674,1734705045848,-150.0,0.00019469,2]
[346095675,1734705045857,-150.0,0.00019542,2]
[346095676,1734705045867,-1029.0,0.00019544,2]
[346095677,1734705045876,-524.0,0.00019544,2]
[346095678,1734705045885,-189.926368,0.00019556,2]
[346095679,1734705045895,-463.283799,0.00019556,2]
[346095680,1734705045904,-189.926368,0.00019556,2]
[346095681,1734705045914,-463.283799,0.00019556,2]
[346095682,1734705045924,-151.0,0.00019556,2]
[346095683,1734705045934,-358.13378,0.00019556,2]
[346095684,1734705045943,-174.413806,0.00019556,2]
[346095685,1734705045953,-358.13378,0.00019556,2]
[346095686,1734705045962,-174.413806,0.00019556,2]
[346095687,1734705045971,-6216.88748,0.00019556,2]
[346095688,1734705045981,-6216.88748,0.00019556,2]
[346095689,1734705045991,-1677.99633,0.00019556,2]
[346095690,1734705046000,-1677.99633,0.00019556,2]
[346095691,1734705046009,-1898.0,0.00019557,2]
[346095692,1734705046018,-3769.0,0.00019557,2]
[346095693,1734705046027,-818.0,0.00019557,2]
[346095694,1734705046037,-1255.0,0.00019557,2]
[346095695,1734705046046,-926.0,0.00019557,2]
[346095696,1734705046055,-536.0,0.00019557,2]
[346095697,1734705046064,-3680.0,0.00019557,2]
[346095699,1734705046073,-1100.0,0.00019557,2]
[346095700,1734705046084,-3885.0,0.00019557,2]
[346095701,1734705046094,-150.0,0.00019557,2]
[346095702,1734705046104,-1264.0,0.00019557,2]
[346095703,1734705046113,-635.0,0.00019557,2]
[346095705,1734705046122,-2010.0,0.00019557,2]
[346095706,1734705046132,-13750.0,0.00019557,2]
[346095707,1734705046141,-150.0,0.00019595,2]
[346095708,1734705046150,-150.0,0.00019598,2]
[346095709,1734705046174,-152.0,0.00019658,4]
[346095710,1734705046183,-1000.0,0.0001966,2]
[346095711,1734705046192,-1000.0,0.0001966,2]
[346095712,1734705046202,-185.55055083,0.0001966,2]
[346095713,1734705046211,-150.0,0.00019753,2]
[346095714,1734705046221,-150.0,0.00019756,2]
[346095715,1734705046230,-150.0,0.00019765,2]